{"text_format":"3","workbook":"xlsx","n_sheets":1,"sheets":["Costing Access Control"],"read":"whole","date_system":"1900"}

{"sheet":"Costing Access Control","index":0,"n_rows":46,"n_cols":6,"rows_kept":46,"merged":[[43,3,43,4]]}
[]
[]
[]
[null,"NO","ACCESS CONTROL BOQ","Quantity","UNIT COST\nEXCLUDING VAT","TOTAL\nEXCLUDING VAT"]
[null,1,"Multi door Site Controller",3,0,{"$f":"SUM(E5*D5)","v":0}]
[null,2,"Fingerprint and Card-based Door Controller with touch screen and reader with POE and IP65 and mount plate.",60,0,{"$f":"SUM(E6*D6)","v":0}]
[null,3,"Face recognition reader for Access Control and mount plate",10,0,0]
[null,4,"Fingerprint and EM Proximity Card based Door Controller for Access Control and mount plate",200,0,0]
[null,5,"Enrolment Station Face recognition",1,0,0]
[null,6,"Enrollment station fingerprint ",2,0,0]
[null,7,"Do not touch the exit buttons",20,0,0]
[null,8,"Door closures",100,0,0]
[null,9,"Mag locks",100,0,0]
[null,10,"Visitor self-service enrollment station kiosk ",1,0,0]
[null,11,"Visitor self-service enrollment station 12–14-inch tablets",2,0,0]
[null,12,"Gooseneck with Base Plate Stainless Steel",16,0,0]
[null,13,"Shielded CAT 6 cable as per spec / meter",20800,0,0]
[null,15,"Fiber 24 core single mode",2000,0,0]
[null,16,"Steel conduit pipe – For outdoor",4800,0,0]
[null,17,"PVC conduit pipe – For indoor",16000,0,0]
[null,18,"Media converters",40,0,0]
[null,19,"Media Converter Rack",40,0,0]
[null,20,"Rackmount 26 Port gigabit cloud managed switch with 24 PoE+ ports",40,0,0]
[null,21,"Rackmount UPs",40,0,0]
[null,22,"Black wall-mounted server rack cabinet 4 tier",40,0,0]
[null,23,"Fiber Patch Panel rack mount",40,0,0]
[null,24,"Centra Enterprise Grade web-enabled APPLICATION SERVER",2,0,0]
[null,25,"Software / License – Application / Platform for 1300 staff",1,0,0]
[null,26,"Software / License – Time and attendance module for 1300 Users",1,0,0]
[null,27,"Software/ License – Visitors Management for 2000 visitors per month, and 100 per day",1,0,0]
[null,28,"Software / License - Cafeteria Management for 1300 users per month",1,0,0]
[null,29,"Software / License - Contract Workers Management for 600 contract workers",1,0,0]
[null,30,"Server and system commission cost",1,0,0]
[null,31,"System integration cost per hour",1,0,0]
[null,32,"Admin training",3,0,0]
[null,33,"Operator Training ",3,0,0]
[null,34,"Other (Access control related)",1,0,0]
[null,35,"Supply and install TurnStar Waist height semi-automatic 180° opening, special needs gate.",3,0,0]
[null,37,"Supply and install TurnStar Waist height ultra-high-speed barrier, speed gate express",6,0,0]
[null,39,"Updating electronic building plans to indicate all changes if applicable. Both for CCTV and Access control. ",1,0,0]
[null,40,"Supply and install a Clearview fence – WiretechTM , Panel length 3050mm, panel height 3000mm, Galvanized, two side posts to match the panel, corner post to match post system. ",4,0,0]
[null,41,"Supply and install a Clearview – WiretechTM  gate 1 meters pedestrian swing gate",4,0,0]
[]
[{"$nulls":3},"TOTAL EXCLUDING VAT",null,{"$f":"SUM(F5:F43)","v":0}]
[{"$nulls":4},"VAT"]
[{"$nulls":4},"TOTAL INCLUDING VAT"]